[Event "BL 2018-19"]
[Site "Berlin"]
[Date "2019.03.23"]
[Round "12.16"]
[White "Kohlweyer, Bernd"]
[Black "Kukov, Velislav"]
[Result "0-1"]
[ECO "D11"]
[WhiteElo "2342"]
[BlackElo "2362"]
[Annotator "NA"]
[PlyCount "118"]
[EventDate "2018.11.10"]
[EventType "team-tourn"]
[EventCountry "GER"]
[SourceTitle "playchess.com"]
[Source "ChessBase"]
[SourceQuality "1"]
[WhiteTeam "Duesseldorf"]
[BlackTeam "Augsburg"]
[TimeControl "40/6000+30:3000+30"]

1. d4 {[%emt 0:00:00]} d5 {[%emt 0:00:00]} 2. c4 {[%emt 0:00:01]} c6 {[%emt 0:00:00]} 3. Nf3 {[%emt 0:01:53]} Nf6 {[%emt 0:00:00]} 4. e3 {[%emt 0:00:06]} Bg4 {[%emt 0:00:00]} 5. Nc3 {[%emt 0:01:16]} e6 {[%emt 0:00:53]} 6. Qb3 {[%emt 0:00:09]} Qb6 {[%emt 0:01:56]} 7. Nh4 {[%emt 0:01:19]} Be7 $11 {[%emt 0:00:49]} 8. h3 {[%emt 0:01:02] LiveBook: 71 Games} Bh5 {[%emt 0:01:16]} 9. g4 {[%emt 0:00:09]} Bg6 {[%emt 0:00:05]} 10. Nxg6 {[%emt 0:05:23]} hxg6 {[%emt 0:04:20]} 11. Bg2 {[%emt 0:01:46]} g5 {[%emt 0:05:37]} 12. e4 {[%emt 0:09:02]} Nxe4 {[%emt 0:21:01]} 13. Nxe4 {[%emt 0:03:52]} dxe4 {[%emt 0:00:59]} 14. Qxb6 {[%emt 0:00:44]} axb6 {[%emt 0:00:02]} 15. Bxe4 {[%emt 0:00:02]} Nd7 {[%emt 0:09:30]} 16. Be3 {[%emt 0:05:05]} Ra5 {[%emt 0:08:29]} 17. Bg2 {[%emt 0:12:04]} b5 {[%emt 0:28:58]} 18. d5 {[%emt 0:06:31]} exd5 {[%emt 0:06:44]} 19. cxd5 {[%emt 0:00:05]} c5 {[%emt 0:00:19]} 20. O-O {[%emt 0:04:53]} Bf6 {[%emt 0:03:33]} 21. Bd2 {[%emt 0:07:19]} Ra6 {[%emt 0:00:51]} 22. Rfe1+ {[%emt 0:02:55]} Kd8 {[%emt 0:00:34]} 23. Bc3 {[%emt 0:05:15]} Re8 {[%emt 0:02:23]} 24. Bxf6+ {[%emt 0:00:34]} Nxf6 {[%emt 0:02:31]} 25. Rec1 {[%emt 0:03:34]} c4 {[%emt 0:01:59]} 26. b3 {[%emt 0:00:23]} cxb3 {[%emt 0:01:01]} 27. axb3 {[%emt 0:00:04]} Rxa1 {[%emt 0:00:02]} 28. Rxa1 {[%emt 0:00:13]} Kc7 {[%emt 0:00:10]} 29. b4 {[%emt 0:03:37]} Ne4 {[%emt 0:01:09]} 30. Rc1+ {[%emt 0:18:44]} Kb6 {[%emt 0:00:23]} 31. d6 {[%emt 0:01:53]} Nxd6 {[%emt 0:00:34]} 32. Rd1 {[%emt 0:00:10]} Kc7 {[%emt 0:02:05]} 33. Rc1+ {[%emt 0:00:04]} Kb6 {[%emt 0:00:18]} 34. Rd1 {[%emt 0:00:05]} Re6 {[%emt 0:02:46]} 35. Bd5 {[%emt 0:04:29]} Re7 {[%emt 0:00:19]} 36. Bf3 {[%emt 0:01:14]} Kc7 {[%emt 0:01:03]} 37. Kg2 {[%emt 0:01:42]} f6 {[%emt 0:00:23]} 38. Rc1+ {[%emt 0:00:58]} Kd7 {[%emt 0:01:56]} 39. Rd1 {[%emt 0:00:12]} Kc7 {[%emt 0:00:16]} 40. Rc1+ {[%emt 0:00:05]} Kb6 {[%emt 0:02:56]} 41. Rd1 {[%emt 0:50:22]} Nc8 {[%emt 0:08:43]} 42. h4 {[%emt 0:00:00]} gxh4 {[%emt 0:04:28]} 43. g5 {[%emt 0:00:00]} fxg5 {[%emt 0:00:59]} 44. Rd5 {[%emt 0:00:00]} g4 {[%emt 0:03:32]} 45. Bxg4 {[%emt 0:00:00]} Na7 {[%emt 0:00:04]} 46. Kh3 {[%emt 0:00:00]} Nc6 {[%emt 0:01:54]} 47. Kxh4 {[%emt 0:00:00]} Nxb4 {[%emt 0:00:23]} 48. Rd2 {[%emt 0:00:00]} Nc6 {[%emt 0:01:35]} 49. f4 {[%emt 0:00:00]} b4 {[%emt 0:01:56]} 50. Kg5 {[%emt 0:00:00]} Kc5 {[%emt 0:01:01]} 51. Rc2+ {[%emt 0:00:00]} Kd4 {[%emt 0:02:52]} 52. Bd1 {[%emt 0:00:00]} Kd3 {[%emt 0:05:08]} 53. Rb2 {[%emt 0:00:00]} b5 {[%emt 0:09:11]} 54. Bb3 {[%emt 0:00:00]} Nd4 {[%emt 0:01:50]} 55. Bg8 {[%emt 0:00:00]} Kc3 {[%emt 0:02:16]} 56. Rg2 {[%emt 0:00:00]} b3 {[%emt 0:04:38]} 57. Kg6 {[%emt 0:00:00]} Ne2 {[%emt 0:02:15]} 58. Rf2 {[%emt 0:00:00]} b2 {[%emt 0:02:31]} 59. Ba2 {[%emt 0:00:00]} Kc2 {[%emt 0:00:44]} 0-1

[Event "BL 2018-19"]
[Site "Berlin"]
[Date "2019.03.24"]
[Round "13.7"]
[White "Zumsande, Martin"]
[Black "Zude, Arno"]
[Result "1/2-1/2"]
[ECO "C50"]
[WhiteElo "2492"]
[BlackElo "2349"]
[Annotator "ChessBase"]
[PlyCount "126"]
[EventDate "2018.11.10"]
[EventType "team-tourn"]
[EventCountry "GER"]
[SourceTitle "playchess.com"]
[Source "ChessBase"]
[SourceQuality "1"]
[WhiteTeam "Werder Bremen"]
[BlackTeam "SV Hofheim"]
[TimeControl "40/6000+30:3000+30"]

1. e4 {[%emt 0:00:00]} e5 {[%emt 0:00:00]} 2. Nf3 {[%emt 0:00:00]} Nc6 {[%emt 0:00:00]} 3. Bc4 {[%emt 0:00:00]} Bc5 {[%emt 0:00:00]} 4. d3 {[%emt 0:00:00]} Nf6 {[%emt 0:00:12]} 5. O-O {[%emt 0:00:03]} O-O {[%emt 0:01:48]} 6. a4 {[%emt 0:00:34]} a5 {[%emt 0:02:12]} 7. Bg5 {[%emt 0:09:11]} h6 {[%emt 0:01:43]} 8. Bh4 {[%emt 0:00:26]} Be7 {[%emt 0:02:34]} 9. Nc3 {[%emt 0:15:57]} d6 {[%emt 0:01:58]} 10. Bxf6 {[%emt 0:03:12]} Bxf6 {[%emt 0:00:11]} 11. Nd5 {[%emt 0:00:07]} g6 {[%emt 0:01:05]} 12. c3 {[%emt 0:06:15]} Bg7 {[%emt 0:00:41]} 13. Nd2 {[%emt 0:14:12]} Nb8 {[%emt 0:17:29]} 14. Ne3 {[%emt 0:09:29]} c6 {[%emt 0:00:52]} 15. Qe2 {[%emt 0:06:46]} Be6 {[%emt 0:09:48]} 16. Bxe6 {[%emt 0:10:30]} fxe6 {[%emt 0:00:13]} 17. g3 {[%emt 0:00:35]} Nd7 {[%emt 0:05:53]} 18. f4 {[%emt 0:02:59]} exf4 {[%emt 0:09:03]} 19. gxf4 {[%emt 0:00:51]} Nf6 {[%emt 0:00:46]} 20. Rf2 {[%emt 0:04:50]} Kh7 {[%emt 0:03:19]} 21. Raf1 {[%emt 0:00:49]} d5 {[%emt 0:01:08]} 22. Kh1 {[%emt 0:04:41]} Qc7 {[%emt 0:09:25]} 23. Rg1 {[%emt 0:06:46]} Bh8 {[%emt 0:08:38]} 24. Nf3 {[%emt 0:03:39]} dxe4 {[%emt 0:17:26]} 25. Nh4 {[%emt 0:00:06]} Rg8 {[%emt 0:01:01]} 26. Nc4 {[%emt 0:03:31]} exd3 {[%emt 0:03:22]} 27. Qxd3 {[%emt 0:00:44]} Qd8 {[%emt 0:00:12]} 28. Qxd8 {[%emt 0:00:35]} Raxd8 {[%emt 0:00:03]} 29. Nxa5 {[%emt 0:00:48]} Rd5 {[%emt 0:05:08]} 30. Nc4 {[%emt 0:01:02]} Rh5 {[%emt 0:01:30]} 31. Nf3 {[%emt 0:00:29]} Nd5 {[%emt 0:00:50]} 32. Ne1 {[%emt 0:03:31]} Rd8 {[%emt 0:03:10]} 33. Ng2 {[%emt 0:00:49]} Rh3 {[%emt 0:00:39]} 34. Re1 {[%emt 0:00:25]} b5 {[%emt 0:01:22]} 35. Na5 {[%emt 0:00:42]} bxa4 {[%emt 0:00:57]} 36. Nxc6 {[%emt 0:00:02]} Rc8 {[%emt 0:00:11]} 37. Ne5 {[%emt 0:02:33]} a3 {[%emt 0:01:53]} 38. bxa3 {[%emt 0:00:01]} Rhxc3 {[%emt 0:00:11]} 39. Nh4 {[%emt 0:01:19]} Rc1 {[%emt 0:01:03]} 40. Rxc1 {[%emt 0:00:49]} Rxc1+ {[%emt 0:00:10]} 41. Kg2 {[%emt 0:50:04]} g5 {[%emt 0:05:36]} 42. Nhg6 {[%emt 0:00:00]} Bxe5 {[%emt 0:02:02]} 43. Nf8+ {[%emt 0:00:00]} Kg8 {[%emt 0:15:32]} 44. fxe5 {[%emt 0:00:00]} Nf4+ {[%emt 0:01:48]} 45. Rxf4 {[%emt 0:00:00]} gxf4 {[%emt 0:00:05]} 46. Nxe6 {[%emt 0:00:00]} Rc2+ {[%emt 0:02:00]} 47. Kf3 {[%emt 0:00:00]} Rxh2 {[%emt 0:00:26]} 48. Nxf4 {[%emt 0:00:00]} Ra2 {[%emt 0:00:39]} 49. Ke4 {[%emt 0:00:00]} Rxa3 {[%emt 0:00:25]} 50. Kf5 {[%emt 0:00:00]} Rf3 {[%emt 0:03:08]} 51. e6 {[%emt 0:00:00]} Rf1 {[%emt 0:03:29]} 52. Ke5 {[%emt 0:00:00]} Kg7 {[%emt 0:07:18]} 53. Kf5 {[%emt 0:00:00]} Kf8 {[%emt 0:03:23]} 54. Ke5 {[%emt 0:00:00]} Ke8 {[%emt 0:00:02]} 55. Kf5 {[%emt 0:00:00]} Ke7 {[%emt 0:00:26]} 56. Ke5 {[%emt 0:00:00]} Re1+ {[%emt 0:00:54]} 57. Kf5 {[%emt 0:00:00]} Rg1 {[%emt 0:02:39]} 58. Nd5+ {[%emt 0:03:58]} Kd6 {[%emt 0:00:04]} 59. Nf4 {[%emt 0:00:13]} Rg5+ {[%emt 0:06:07]} 60. Kf6 {[%emt 0:00:28]} Rg4 {[%emt 0:00:15]} 61. Nh5 {[%emt 0:02:05]} Re4 {[%emt 0:02:09]} 62. Ng7 {[%emt 0:00:58]} h5 {[%emt 0:01:29]} 63. Nxh5 {[%emt 0:02:06]} Rxe6+ {[%emt 0:00:10]} 1/2-1/2

[Event "BL 2018-19"]
[Site "Berlin"]
[Date "2019.03.24"]
[Round "13.8"]
[White "Kukov, Velislav"]
[Black "Wegerle, Joerg"]
[Result "1/2-1/2"]
[ECO "A07"]
[WhiteElo "2362"]
[BlackElo "2409"]
[Annotator "NA"]
[PlyCount "41"]
[EventDate "2018.11.10"]
[EventType "team-tourn"]
[EventCountry "GER"]
[SourceTitle "playchess.com"]
[Source "ChessBase"]
[SourceQuality "1"]
[WhiteTeam "Augsburg"]
[BlackTeam "Solingen"]
[TimeControl "40/6000+30:3000+30"]

1. Nf3 {[%emt 0:00:00]} d5 {[%emt 0:00:00]} 2. g3 {[%emt 0:00:00]} Nf6 {[%emt 0:00:35]} 3. Bg2 {[%emt 0:00:00]} c6 {[%emt 0:00:37]} 4. O-O {[%emt 0:01:17]} Bg4 {[%emt 0:04:24]} 5. d4 {[%emt 0:00:10]} Nbd7 {[%emt 0:00:38]} 6. Nbd2 {[%emt 0:00:10]} e6 {[%emt 0:00:58]} 7. Re1 {[%emt 0:00:06]} Be7 {[%emt 0:02:58]} 8. e4 {[%emt 0:00:10]} dxe4 {[%emt 0:00:27]} 9. Nxe4 {[%emt 0:00:06]} Nxe4 {[%emt 0:02:40]} 10. Rxe4 {[%emt 0:00:23]} Bf5 {[%emt 0:01:21]} 11. Re1 {[%emt 0:00:09]} O-O {[%emt 0:01:23]} 12. c3 {[%emt 0:00:26]} Qb6 {[%emt 0:02:37]} 13. Qb3 {[%emt 0:02:06]} h6 {[%emt 0:14:20] D02: 1 d4 d5 2 Nf3 sidelines, including 2...Nf6 3 g3 and 2...Nf6 3 Bf4} (13... a5 14. Bg5 Bd6 15. Nd2 a4 16. Qxb6 Nxb6 17. Ne4 Bxe4 18. Bxe4 h6 19. Bc1 Rfe8 20. Kf1 e5 21. dxe5 Bxe5 {1-0 (72) Meier,G (2630)-Fontaine,R (2549) chess.com INT 2017}) 14. Nd2 {[%emt 0:11:59]} a5 {[%emt 0:09:16]} 15. Ne4 {[%emt 0:17:18]} a4 {[%emt 0:03:49]} 16. Qxb6 {[%emt 0:05:15]} Nxb6 {[%emt 0:00:18]} 17. Bf4 {[%emt 0:03:17]} Ra7 $146 {[%emt 0:14:25]} 18. Bd6 {[%emt 0:13:10]} Bxe4 {[%emt 0:10:35]} 19. Bxe7 $11 {[%emt 0:00:18]} Re8 {[%emt 0:00:10]} 20. Bc5 {[%emt 0:08:36]} Bxg2 {[%emt 0:00:25]} 21. Bxb6 {[%emt 0:00:10]} 1/2-1/2

[Event "BL 2018-19"]
[Site "Berlin"]
[Date "2019.03.24"]
[Round "13.10"]
[White "Hertneck, Gerald"]
[Black "Timman, Jan H"]
[Result "1/2-1/2"]
[ECO "E16"]
[WhiteElo "2492"]
[BlackElo "2541"]
[Annotator "ChessBase"]
[PlyCount "97"]
[EventDate "2018.11.10"]
[EventType "team-tourn"]
[EventCountry "GER"]
[SourceTitle "playchess.com"]
[Source "ChessBase"]
[SourceQuality "1"]
[WhiteTeam "Zugzwang Muenchen"]
[BlackTeam "Duesseldorf"]
[TimeControl "40/6000+30:3000+30"]

1. d4 {[%emt 0:00:00]} Nf6 {[%emt 0:00:00]} 2. Nf3 {[%emt 0:00:00]} e6 {[%emt 0:00:02]} 3. c4 {[%emt 0:00:00]} Bb4+ {[%emt 0:00:28]} 4. Bd2 {[%emt 0:00:00]} Qe7 {[%emt 0:00:25]} 5. g3 {[%emt 0:00:05]} Nc6 {[%emt 0:00:52]} 6. Nc3 {[%emt 0:00:36]} d5 {[%emt 0:02:55]} 7. a3 {[%emt 0:02:52]} Bxc3 {[%emt 0:00:54]} 8. Bxc3 {[%emt 0:00:05]} Ne4 {[%emt 0:18:18]} 9. Qc2 {[%emt 0:01:25]} f5 {[%emt 0:02:44]} 10. Bg2 {[%emt 0:03:10]} O-O {[%emt 0:01:10]} 11. b4 {[%emt 0:05:51]} a6 {[%emt 0:01:46]} 12. Bb2 {[%emt 0:05:39]} Bd7 {[%emt 0:07:19]} 13. O-O {[%emt 0:00:24]} Be8 {[%emt 0:03:49]} 14. Ne5 {[%emt 0:08:31]} Nxe5 {[%emt 0:02:38]} 15. dxe5 {[%emt 0:00:07]} dxc4 {[%emt 0:01:23]} 16. f3 {[%emt 0:03:42]} c3 {[%emt 0:02:12]} 17. Bc1 {[%emt 0:00:07]} Nd2 {[%emt 0:01:19]} 18. Bxd2 {[%emt 0:17:04]} cxd2 {[%emt 0:00:22]} 19. f4 {[%emt 0:00:22]} Rd8 {[%emt 0:11:33]} 20. Rfd1 {[%emt 0:00:09]} Qd7 {[%emt 0:00:55]} 21. Qc3 {[%emt 0:06:16]} Qb5 {[%emt 0:20:03]} 22. Rxd2 {[%emt 0:02:04]} Rxd2 {[%emt 0:00:07]} 23. Qxd2 {[%emt 0:00:06]} Rf7 {[%emt 0:00:08]} 24. Qe3 {[%emt 0:04:06]} Rd7 {[%emt 0:02:26]} 25. Rc1 {[%emt 0:00:06]} Bh5 {[%emt 0:01:06]} 26. Kf2 {[%emt 0:00:09]} c6 {[%emt 0:00:19]} 27. Rc3 {[%emt 0:03:29]} Kf8 {[%emt 0:05:30]} 28. Rd3 {[%emt 0:06:32]} Rxd3 {[%emt 0:00:08]} 29. Qxd3 {[%emt 0:00:05]} Qxd3 {[%emt 0:00:22]} 30. exd3 {[%emt 0:00:05]} Ke7 {[%emt 0:00:09]} 31. a4 {[%emt 0:01:19]} Kd7 {[%emt 0:02:45]} 32. a5 {[%emt 0:00:07]} Bd1 {[%emt 0:02:31]} 33. Ke3 {[%emt 0:00:10]} Kc7 {[%emt 0:02:02]} 34. Kd4 {[%emt 0:10:45]} b6 {[%emt 0:00:23]} 35. Kc3 {[%emt 0:00:09]} Kb7 {[%emt 0:02:42]} 36. Kd2 {[%emt 0:03:06]} Bb3 {[%emt 0:00:43]} 37. d4 {[%emt 0:00:06]} Bd5 {[%emt 0:00:56]} 38. Bf1 {[%emt 0:00:09]} b5 {[%emt 0:00:19]} 39. Be2 {[%emt 0:00:06]} g6 {[%emt 0:02:50]} 40. g4 {[%emt 0:00:07]} fxg4 {[%emt 0:01:03]} 41. Bxg4 {[%emt 0:50:06]} Kc7 {[%emt 0:50:24]} 42. Ke3 {[%emt 0:01:54]} Kd7 {[%emt 0:01:49]} 43. h4 {[%emt 0:00:27]} h5 {[%emt 0:00:23]} 44. Bd1 {[%emt 0:00:06]} Ke7 {[%emt 0:00:12]} 45. f5 {[%emt 0:04:14]} exf5 {[%emt 0:00:10]} 46. Kf4 {[%emt 0:00:04]} Kf7 {[%emt 0:01:00]} 47. Kg5 {[%emt 0:00:07]} Kg7 {[%emt 0:00:56]} 48. Be2 {[%emt 0:00:55]} Kf7 {[%emt 0:00:09]} 49. Bd1 {[%emt 0:00:21]} 1/2-1/2

[Event "BL 2018-19"]
[Site "Berlin"]
[Date "2019.03.24"]
[Round "13.13"]
[White "Miedema, David"]
[Black "Gerigk, Erasmus"]
[Result "1-0"]
[ECO "B32"]
[WhiteElo "2381"]
[BlackElo "2355"]
[Annotator "NA"]
[PlyCount "61"]
[EventDate "2018.11.10"]
[EventType "team-tourn"]
[EventCountry "GER"]
[SourceTitle "playchess.com"]
[Source "ChessBase"]
[SourceQuality "1"]
[WhiteTeam "Duesseldorf"]
[BlackTeam "Zugzwang Muenchen"]
[TimeControl "40/6000+30:3000+30"]

1. e4 {[%emt 0:00:00]} c5 {[%emt 0:00:00]} 2. Nf3 {[%emt 0:00:00]} Nc6 {[%emt 0:00:00]} 3. d4 {[%emt 0:00:00]} cxd4 {[%emt 0:00:00]} 4. Nxd4 {[%emt 0:00:00]} e5 {[%emt 0:00:02]} 5. Nb5 {[%emt 0:00:00]} d6 {[%emt 0:00:09]} 6. N1c3 {[%emt 0:00:00]} a6 {[%emt 0:00:10]} 7. Na3 {[%emt 0:00:00]} b5 {[%emt 0:00:10]} 8. Nd5 {[%emt 0:00:00]} Nge7 {[%emt 0:00:12]} 9. c4 {[%emt 0:00:04]} Nd4 {[%emt 0:00:19]} 10. cxb5 {[%emt 0:00:04]} Nxd5 {[%emt 0:00:19]} 11. exd5 {[%emt 0:00:04]} Bd7 {[%emt 0:01:54] B32: Sicilian: Löwenthal and Kalashnikov Variations} (11... Be7 12. Bd3 O-O 13. O-O f5 14. Be3 Nxb5 15. Nc4 Rb8 16. f3 Bb7 17. a4 Nd4 18. Bxd4 exd4 19. a5 Bxd5 20. Nb6 {0-1 (48) Martinez Alcantara,J (2561)-Naiditsch,A (2711) Linares 2018}) 12. bxa6 {[%emt 0:02:20]} Qa5+ {[%emt 0:00:14]} 13. b4 $146 {[%emt 0:16:41]} ({Predecessor:} 13. Bd2 Qxd5 14. Be3 Rb8 15. Nc4 Be7 16. Bxd4 exd4 17. Be2 Bc6 18. f3 Bh4+ 19. g3 {0-1 (35) Rodriguez Lopez,R (2312)-Reinaldo Castineira,R (2503) Gijon 2018}) 13... Qxb4+ {[%emt 0:15:07]} 14. Qd2 {[%emt 0:00:37]} Qa4 $2 {[%emt 0:01:52] [#]} (14... Qc5 $11 {and Black stays safe.}) 15. Rb1 $1 {[%emt 0:02:07]} Rc8 {[%emt 0:07:46]} 16. Bd3 {[%emt 0:00:19]} Be7 {[%emt 0:13:42]} 17. O-O {[%emt 0:00:43]} O-O {[%emt 0:03:12]} 18. Qb4 {[%emt 0:37:37]} Qxb4 {[%emt 0:40:27]} 19. Rxb4 {[%emt 0:00:25]} Rc3 {[%emt 0:03:56]} 20. Rd1 {[%emt 0:00:41]} Rfc8 {[%emt 0:03:07]} 21. Bb2 {[%emt 0:00:30]} R3c5 $18 {[%emt 0:00:59]} 22. Bxd4 {[%emt 0:04:22]} exd4 {[%emt 0:00:33]} 23. Nc4 {[%emt 0:10:06]} Bd8 {[%emt 0:02:59]} 24. Nxd6 {[%emt 0:09:00]} Rc1 {[%emt 0:00:13]} 25. Nxc8 {[%emt 0:06:51]} Rxd1+ {[%emt 0:00:31]} 26. Bf1 {[%emt 0:00:02]} d3 {[%emt 0:02:56]} 27. a7 {[%emt 0:04:11]} Bb5 {[%emt 0:04:39]} 28. Rd4 {[%emt 0:00:07]} d2 {[%emt 0:00:23]} 29. h4 {[%emt 0:02:25]} Rxf1+ {[%emt 0:01:04]} 30. Kh2 {[%emt 0:00:02]} Bc7+ {[%emt 0:01:45]} 31. d6 {[%emt 0:00:12]} 1-0

[Event "BL 2018-19"]
[Site "Berlin"]
[Date "2019.03.24"]
[Round "13.14"]
[White "Hoffmeyer, Falk"]
[Black "Schuh, Dirk"]
[Result "1-0"]
[ECO "A40"]
[WhiteElo "2337"]
[BlackElo "2395"]
[Annotator "NA"]
[PlyCount "47"]
[EventDate "2018.11.10"]
[EventType "team-tourn"]
[EventCountry "GER"]
[SourceTitle "playchess.com"]
[Source "ChessBase"]
[SourceQuality "1"]
[WhiteTeam "Zugzwang Muenchen"]
[BlackTeam "Duesseldorf"]
[TimeControl "40/6000+30:3000+30"]

{[%evp 16,43,20,10,32767,12,44,32767,32767,32767,-2,-8,31,3,55,0,37,32767,32767,32767,79,22,49,-37,-23,-34,32767,32767,32767,403]} 1. d4 {[%emt 0:00:00]} g6 {[%emt 0:00:00]} 2. Nf3 {[%emt 0:00:00]} Bg7 {[%emt 0:00:00]} 3. Bg5 {[%emt 0:00:28]} d6 {[%emt 0:01:32]} 4. e3 {[%emt 0:00:29]} (4. c3 Nd7 5. Nbd2 f6 6. Bh4 Nh6 7. e4 O-O 8. Bc4+ Nf7 9. Bg3 e5 10. a4 Qe7 11. O-O a5 12. Re1 Rd8 {0-1 (44) Dvirnyy,D (2485)-Kadric,D (2554) Skopje 2018}) 4... Nd7 {[%emt 0:02:41]} 5. Be2 {[%emt 0:01:02]} h6 {[%emt 0:00:25]} 6. Bh4 {[%emt 0:00:20] A41: 1 d4 d6: Tartakower System and Modern Defence} g5 {[%emt 0:00:20]} 7. Bg3 {[%emt 0:00:07]} f5 $146 {[%emt 0:05:45]} ({Predecessor:} 7... e5 8. dxe5 dxe5 9. c3 Ne7 10. h3 O-O 11. Na3 {0-1 (28) Ui Laighleis,G (1985)-Porter,L Dublin 2008}) 8. Bd3 {[%emt 0:17:31]} e6 {[%emt 0:01:18]} 9. c3 {[%emt 0:01:12]} Ne7 {[%emt 0:01:05]} 10. Qc2 {[%emt 0:02:40]} Rf8 {[%emt 0:18:39]} 11. h3 {[%emt 0:06:24]} e5 {[%emt 0:01:52]} 12. Ng1 {[%emt 0:05:24]} f4 {[%emt 0:16:35]} 13. Bh2 {[%emt 0:00:48]} Nf6 {[%emt 0:09:39]} 14. dxe5 {[%emt 0:08:01]} dxe5 {[%emt 0:00:55]} 15. exf4 {[%emt 0:00:17]} exf4 {[%emt 0:04:05]} 16. Na3 {[%emt 0:01:32]} Qd5 {[%emt 0:02:01]} 17. O-O-O {[%emt 0:03:18]} Bf5 {[%emt 0:07:16] [#]} ({Stronger than} 17... Qxa2 18. Bc4 $16) (17... Qxg2 $11 18. Nb5 Qxh1 19. Nxc7+ Kf7 20. Bc4+ Ned5 21. Rxd5 Kg8 22. Rd1+ Kh8 23. Nxa8 b5) 18. Bxf5 {[%emt 0:04:42]} (18. Qa4+ $1 $16 c6 19. Bxf5 Qxf5 20. Nc4) 18... Qxf5 {[%emt 0:00:26]} 19. Qb3 {[%emt 0:01:20]} (19. Qe2 $14) 19... Ne4 {[%emt 0:01:33]} 20. Nb5 {[%emt 0:03:24]} Be5 {[%emt 0:02:14]} 21. Nf3 {[%emt 0:03:43]} Rf6 {[%emt 0:08:28]} 22. Rhe1 $18 {[%emt 0:05:53]} Nc5 {[%emt 0:15:08]} 23. Qc4 {[%emt 0:05:06]} Bd6 {[%emt 0:00:38]} 24. Rd5 {[%emt 0:07:44]} 1-0

[Event "BL 2018-19"]
[Site "Berlin"]
[Date "2019.03.24"]
[Round "13.16"]
[White "Lammers, Markus"]
[Black "Kohlweyer, Bernd"]
[Result "1-0"]
[ECO "A47"]
[WhiteElo "2298"]
[BlackElo "2342"]
[Annotator "NA"]
[PlyCount "65"]
[EventDate "2018.11.10"]
[EventType "team-tourn"]
[EventCountry "GER"]
[SourceTitle "playchess.com"]
[Source "ChessBase"]
[SourceQuality "1"]
[WhiteTeam "Zugzwang Muenchen"]
[BlackTeam "Duesseldorf"]
[TimeControl "40/6000+30:3000+30"]

1. d4 {[%emt 0:00:00]} Nf6 {[%emt 0:05:38]} 2. Nf3 {[%emt 0:00:20]} b6 {[%emt 0:03:48]} 3. Bf4 {[%emt 0:03:02]} Bb7 {[%emt 0:00:25]} 4. e3 {[%emt 0:00:06]} g6 {[%emt 0:03:38]} 5. Be2 {[%emt 0:02:26]} Bg7 {[%emt 0:00:05]} 6. O-O {[%emt 0:00:09]} O-O {[%emt 0:01:00]} 7. c4 {[%emt 0:00:20]} d6 {[%emt 0:00:49]} 8. h3 {[%emt 0:00:21]} Nbd7 {[%emt 0:00:34]} 9. Nc3 {[%emt 0:02:09]} Ne4 {[%emt 0:00:12]} 10. Nxe4 {[%emt 0:15:28]} Bxe4 {[%emt 0:00:16]} 11. Qd2 {[%emt 0:00:04]} e5 {[%emt 0:13:08]} 12. Bh2 {[%emt 0:03:36]} a5 {[%emt 0:00:23] E61: King's Indian: Early deviations for White, including Smyslov System} (12... Re8 13. Rad1 a5 14. Bg3 h6 15. dxe5 Nxe5 16. Nd4 Nd7 17. Nb5 Nc5 18. f3 Bb7 19. Nc3 h5 20. Bf2 Bh6 21. Rfe1 Re5 22. Qd4 Bg7 23. Qd2 Bh6 24. Qd4 Bg7 25. Qd2 Bh6 {½-½ (25) Paehtz,E (2495)-Javakhishvili,L (2477) Sovata 2018}) 13. Rfd1 {[%emt 0:02:46]} Qe7 {[%emt 0:00:36]} 14. Rac1 {[%emt 0:06:14]} Rfe8 $146 {[%emt 0:02:50]} ({Predecessor:} 14... Rad8 15. Ne1 Bb7 16. Nc2 Qg5 17. Bf1 Rfe8 18. Qe2 exd4 19. Nxd4 Nc5 20. Nb5 {0-1 (69) Radlovacki,J (2305)-Omorjan,D (2268) Stari Banovci 2018}) 15. b3 {[%emt 0:03:12]} Bb7 {[%emt 0:02:18]} 16. d5 {[%emt 0:10:59]} f5 {[%emt 0:04:02]} 17. a3 {[%emt 0:05:54]} h5 {[%emt 0:06:29]} 18. Qc2 {[%emt 0:04:43]} Rf8 {[%emt 0:01:47]} 19. b4 {[%emt 0:04:29]} g5 {[%emt 0:01:00]} 20. Nd2 {[%emt 0:00:53]} Qf7 {[%emt 0:11:50]} 21. f4 $15 {[%emt 0:01:59]} (21. Nf3 $1 $11) 21... Bh6 {[%emt 0:20:16]} 22. Nf3 {[%emt 0:04:34]} gxf4 {[%emt 0:11:58]} 23. exf4 {[%emt 0:00:16]} axb4 {[%emt 0:01:57]} 24. axb4 {[%emt 0:00:10]} Rae8 {[%emt 0:05:24]} 25. Ra1 {[%emt 0:00:48]} exf4 {[%emt 0:03:26]} 26. Ra7 {[%emt 0:03:13]} Bc8 {[%emt 0:00:03]} 27. Rxc7 {[%emt 0:00:55]} Re7 {[%emt 0:00:03]} 28. Nd4 {[%emt 0:02:05]} Ne5 {[%emt 0:00:30]} 29. Rxc8 {[%emt 0:01:52]} Rxc8 {[%emt 0:00:01]} 30. Nxf5 {[%emt 0:00:14]} Qf6 {[%emt 0:00:18]} 31. Nxe7+ {[%emt 0:07:34]} Qxe7 {[%emt 0:00:01]} 32. Qf5 {[%emt 0:00:11]} Rf8 {[%emt 0:01:00]} 33. Qe6+ {[%emt 0:02:44]} 1-0

[Event "BL 2018-19"]
[Site "Berlin"]
[Date "2019.04.06"]
[Round "14"]
[White "Zelbel, Patrick"]
[Black "Braun, Arik"]
[Result "1/2-1/2"]
[ECO "B22"]
[WhiteElo "2439"]
[BlackElo "2605"]
[Annotator "ChessBase"]
[PlyCount "43"]
[EventDate "2018.11.10"]
[EventType "team-tourn"]
[EventCountry "GER"]
[SourceTitle "playchess.com"]
[Source "ChessBase"]
[SourceQuality "1"]
[WhiteTeam "Muelheim"]
[BlackTeam "Hockenheim"]
[TimeControl "40/6000+30:3000+30"]

1. e4 {[%emt 0:00:30]} c5 {[%emt 0:00:30]} 2. c3 {[%emt 0:00:00]} Nf6 {[%emt 0:00:00]} 3. e5 {[%emt 0:00:00]} Nd5 {[%emt 0:00:00]} 4. Bc4 {[%emt 0:00:30]} Nb6 {[%emt 0:00:30]} 5. Bb3 {[%emt 0:00:00]} c4 {[%emt 0:00:30]} 6. Bc2 {[%emt 0:00:00]} Nc6 {[%emt 0:00:30]} 7. Nf3 {[%emt 0:00:30]} Qc7 {[%emt 0:00:00]} 8. O-O {[%emt 0:00:00]} Nxe5 {[%emt 0:02:00]} 9. Nxe5 {[%emt 0:00:00]} Qxe5 {[%emt 0:00:30]} 10. Re1 {[%emt 0:00:00]} Qc7 {[%emt 0:03:30]} 11. a4 {[%emt 0:04:00]} e6 {[%emt 0:06:30]} 12. a5 {[%emt 0:01:30]} Nd5 {[%emt 0:02:30]} 13. d3 {[%emt 0:00:30]} cxd3 {[%emt 0:02:30]} 14. Qxd3 {[%emt 0:00:30]} Be7 {[%emt 0:01:30]} 15. Na3 {[%emt 0:14:30]} Qxa5 {[%emt 0:09:30]} 16. Bd2 {[%emt 0:05:30]} Qd8 {[%emt 0:02:30]} 17. Nb5 {[%emt 0:01:30]} a6 {[%emt 0:14:30]} 18. Qg3 {[%emt 0:11:30]} O-O {[%emt 0:14:30]} 19. Bh6 {[%emt 0:04:30]} g6 {[%emt 0:01:30]} 20. Bxf8 {[%emt 0:22:30]} Qxf8 {[%emt 0:00:30]} 21. Red1 {[%emt 0:01:30]} Bc5 {[%emt 0:09:30]} 22. Bb3 {[%emt 0:07:30]} 1/2-1/2